bitfinex/quotes_ETHUSD_20230110
["timestamp","ask_amount","ask_price","bid_price","bid_amount"]
[1673384058824,6.00876525,1342.2,1341.9,14.93820404]
[1673384059850,6.00876525,1342.2,1341.9,7.48608404]
[1673384060290,6.00876525,1342.2,1341.9,14.95991557]
[1673384060497,3.80735825,1342.2,1341.9,22.41203557]
[1673384060713,3.80335825,1342.2,1341.9,22.41203557]
[1673384062220,3.80335825,1342.2,1341.9,14.95991557]
[1673384062590,3.80335825,1342.2,1341.9,22.41203557]
[1673384062813,3.80335825,1342.2,1341.9,14.95991557]
[1673384063430,3.87795825,1342.2,1341.9,14.95991557]
[1673384065463,6.83183125,1342.2,1341.9,7.50779557]
[1673384065667,6.83583125,1342.2,1341.9,7.50779557]
[1673384067018,6.83583125,1342.2,1341.9,22.41203557]
[1673384067225,3.88195825,1342.2,1341.9,22.41203557]
[1673384067435,3.87795825,1342.2,1341.9,14.95991557]
[1673384068483,3.87795825,1342.2,1341.9,22.41203557]
[1673384069179,3.87795825,1342.2,1341.9,14.95991557]
[1673384070197,3.87795825,1342.2,1341.9,7.50779557]
[1673384071167,0.0746,1342.2,1342.0,1.33]
[1673384071341,0.0746,1342.2,1342.1,23.54318697]
[1673384071531,0.0746,1342.2,1342.1,23.57715101]
[1673384072212,1e-08,1342.2,1342.1,23.57715101]
[1673384077118,1e-08,1342.2,1342.1,25.42600176]
[1673384077466,1e-08,1342.2,1342.1,23.57715101]
[1673384077840,1e-08,1342.2,1342.1,27.5227937]
[1673384078051,1e-08,1342.2,1342.1,38.37175247]
[1673384078255,1e-08,1342.2,1342.1,41.37175247]
[1673384078465,1e-08,1342.2,1342.1,43.04151657]
[1673384078710,1e-08,1342.2,1342.1,41.37175247]
[1673384079948,1e-08,1342.2,1342.1,28.86399777]
[1673384080415,1e-08,1342.2,1342.1,29.74402546]
[1673384080722,1e-08,1342.2,1342.1,32.51724468]
[1673384081151,1e-08,1342.2,1342.1,22.29302546]
[1673384081318,1e-08,1342.2,1342.1,20.44415101]
[1673384081741,1e-08,1342.2,1342.1,27.89515101]
[1673384084611,1e-08,1342.2,1342.1,29.74401313]
[1673384084924,1e-08,1342.2,1342.1,27.89515101]
[1673384085136,1e-08,1342.2,1342.1,29.74402201]
[1673384087345,1e-08,1342.2,1342.1,27.89515101]
[1673384087920,1e-08,1342.2,1342.1,25.39015101]
[1673384088167,1e-08,1342.2,1342.1,22.39015101]
[1673384090951,1e-08,1342.2,1342.1,23.72015101]
[1673384092189,0.0092519,1342.4,1342.2,0.00199999]
[1673384092407,0.5589,1342.5,1342.3,9.94989]
[1673384092733,3.22175779,1342.5,1342.3,23.73138598]
[1673384093039,0.5589,1342.5,1342.3,23.73138598]
[1673384098468,23.8384,1342.6,1342.3,23.73138598]
[1673384098690,23.7764,1342.6,1342.3,23.73138598]
[1673384099120,8.4178,1342.6,1342.3,23.73138598]
[1673384100814,7.8589,1342.6,1342.4,1.33]
[1673384101161,7.8589,1342.6,1342.5,22.34634]
[1673384101304,0.004,1342.6,1342.5,22.38030404]
[1673384101492,0.06066312,1342.7,1342.5,22.38030404]
[1673384101707,0.06066312,1342.7,1342.5,23.70230404]
[1673384102160,8.71926729,1342.9,1342.6,2.5]
[1673384102357,8.16046729,1342.9,1342.7,14.89536]
[1673384102602,8.16046729,1342.9,1342.7,22.37700404]
[1673384102980,0.15396729,1342.9,1342.7,22.37700404]
[1673384103172,0.14796729,1342.9,1342.7,22.37700404]
[1673384111889,0.14796729,1342.9,1342.7,35.18130904]
[1673384120416,0.14796729,1342.9,1342.8,1.664]
[1673384120569,0.14796729,1342.9,1342.8,24.00536]
[1673384120951,0.14796729,1342.9,1342.8,24.03932404]
[1673384122472,0.90078982,1343.0,1342.9,2.5]
[1673384122665,0.90078982,1343.0,1342.9,24.83971]
[1673384122876,0.90078982,1343.0,1342.9,26.54267404]
[1673384123093,9.82e-06,1343.0,1342.9,26.54267404]
[1673384123401,0.16066312,1343.2,1342.9,34.50513868]
[1673384123658,0.16066312,1343.2,1343.1,22.33638]
[1673384123861,0.16066312,1343.2,1343.1,22.37034404]
[1673384124259,0.16066312,1343.2,1343.1,14.92488404]
[1673384124595,0.16066312,1343.2,1343.1,7.50120478]
[1673384125711,0.16066312,1343.2,1343.1,14.94666478]
[1673384125922,0.16066312,1343.2,1343.1,22.39212478]
[1673384127185,0.16066312,1343.2,1343.1,31.79395582]
[1673384127410,0.16266312,1343.2,1343.1,31.79195582]
[1673384127616,0.16066312,1343.2,1343.1,34.79395582]
[1673384127879,0.16066312,1343.2,1343.1,35.35265582]
[1673384128252,0.16066312,1343.2,1343.1,35.82865947]
[1673384128721,0.16066312,1343.2,1343.1,35.26995947]
[1673384128937,0.16066312,1343.2,1343.1,49.89015947]
[1673384129297,0.16066312,1343.2,1343.1,45.47898542]
[1673384129508,0.16066312,1343.2,1343.1,23.14260542]
[1673384129934,0.16066312,1343.2,1343.1,40.01232478]
[1673384130187,0.16066312,1343.2,1343.1,37.01232478]
[1673384133633,0.16066312,1343.2,1343.1,29.56686478]
[1673384133844,0.16066312,1343.2,1343.1,14.65416404]
[1673384134029,1.35066312,1343.2,1343.1,0.03396404]
[1673384134240,18.0471628,1343.2,1343.0,0.03396404]
[1673384134506,9.4182628,1343.2,1342.9,14.18926404]
[1673384134886,9.4183628,1343.2,1342.9,14.18926404]
[1673384136071,1.9733628,1343.2,1342.9,14.18926404]
[1673384136396,7.60559312,1343.2,1342.9,14.18926404]
[1673384136609,0.16666312,1343.2,1342.9,14.18926404]
[1673384136762,0.16066312,1343.2,1342.9,21.63579404]
[1673384137107,0.16066312,1343.2,1342.9,29.08236404]
[1673384137516,0.16066312,1343.2,1343.0,0.02286843]
[1673384137708,0.16066312,1343.2,1343.0,14.91466843]
[1673384137917,0.16066312,1343.2,1343.0,14.94863247]
[1673384139228,0.16066312,1343.2,1343.0,16.61663247]
[1673384139386,0.16066312,1343.2,1343.0,24.06264247]
[1673384139599,0.16066312,1343.2,1343.1,1.669]
[1673384139809,0.16066312,1343.2,1343.1,16.55992]
[1673384140054,0.16066312,1343.2,1343.1,24.03934404]
[1673384140697,0.16066312,1343.2,1343.1,23.98934404]
[1673384142170,1e-08,1343.2,1343.1,23.98934404]
[1673384146160,1e-08,1343.2,1343.1,9.09842404]
[1673384147056,1e-08,1343.2,1343.1,1.65296404]
[1673384147261,1e-08,1343.2,1343.1,1.619]
[1673384150027,1e-08,1343.2,1343.0,16.04899247]
[1673384150509,1e-08,1343.2,1343.0,8.60303247]
[1673384151289,1e-08,1343.2,1343.0,23.49492247]
[1673384152344,1e-08,1343.2,1343.0,30.94093247]
[1673384155019,1e-08,1343.2,1343.0,32.60693247]
[1673384155970,1e-08,1343.2,1343.1,1.664]
[1673384156131,1e-08,1343.2,1343.1,24.00038]
[1673384156341,1e-08,1343.2,1343.1,24.03434404]
[1673384158136,0.15803365,1343.3,1343.2,0.00199999]
[1673384158348,0.15803365,1343.3,1343.2,8.63389999]
[1673384158560,0.15803365,1343.3,1343.2,8.66786403]
[1673384159641,0.15803365,1343.3,1343.2,7.48086403]
[1673384160443,0.15803365,1343.3,1343.2,0.03596403]
[1673384160656,0.15803365,1343.3,1343.2,0.00199999]
[1673384161355,0.15803365,1343.3,1343.2,7.44689999]
[1673384161548,0.15803365,1343.3,1343.2,7.48086403]
[1673384161735,0.15803365,1343.3,1343.2,10.00264309]
[1673384161935,0.15803365,1343.3,1343.2,7.50264309]
[1673384162394,0.15803365,1343.3,1343.2,14.94754309]
[1673384163224,0.15803365,1343.3,1343.2,0.05774309]
[1673384163437,1.34803365,1343.3,1343.2,0.00199999]
[1673384163834,0.15803365,1343.3,1343.2,0.00199999]
[1673384164056,1.34803365,1343.3,1343.2,0.00199999]
[1673384167219,0.15803365,1343.3,1343.2,7.44689999]
[1673384167428,1.34803365,1343.3,1343.2,0.03596403]
[1673384167635,1.34803365,1343.3,1343.2,0.00199999]
[1673384173436,1.78452112,1343.3,1343.2,0.00199999]
[1673384174371,1.34803365,1343.3,1343.2,0.00199999]
[1673384174731,0.15803365,1343.3,1343.2,0.00199999]
[1673384175109,1.34803365,1343.3,1343.2,0.00199999]
[1673384175893,0.15803365,1343.3,1343.2,0.00199999]
[1673384176052,1.34803365,1343.3,1343.2,0.00199999]
[1673384176441,0.15803365,1343.3,1343.2,0.00199999]
[1673384176605,1.34803365,1343.3,1343.2,0.00199999]
[1673384177388,0.15803365,1343.3,1343.2,0.00199999]
[1673384177961,0.15803365,1343.3,1343.2,7.44689999]
[1673384178325,0.15803365,1343.3,1343.2,7.48086403]
[1673384178851,0.15803365,1343.3,1343.2,0.03262129]
[1673384179043,0.15803365,1343.3,1343.1,18.45338129]
[1673384179266,0.46892112,1343.3,1343.1,11.00822129]
[1673384179857,0.46892112,1343.3,1343.1,25.89904129]
[1673384181067,0.46892112,1343.3,1343.1,33.34450129]
[1673384181375,0.15803365,1343.3,1343.1,33.34450129]
[1673384186635,0.16003365,1343.3,1343.1,33.34250129]
[1673384186948,0.15803365,1343.3,1343.1,33.34450129]
[1673384187773,0.15803365,1343.3,1343.1,25.89904129]
[1673384188830,0.15803365,1343.3,1343.1,7.47783129]
[1673384189157,0.60102112,1343.3,1343.1,0.03262129]
[1673384189333,0.60102112,1343.3,1343.0,33.68947001]
[1673384191243,11.781671,1343.4,1343.0,33.68947001]
[1673384191439,11.721671,1343.4,1343.0,33.68947001]
[1673384192411,2.79017788,1343.3,1343.0,33.68947001]
[1673384192622,11.781671,1343.4,1343.0,33.68947001]
[1673384192845,5.29017788,1343.3,1343.0,33.68947001]
[1673384193148,5.29617788,1343.3,1343.0,30.91795652]
[1673384193948,2.79617788,1343.3,1343.0,30.91795652]
[1673384194190,2.79017788,1343.3,1343.0,30.91795652]
[1673384194570,2.79017788,1343.3,1343.0,0.03479652]
[1673384194782,0.0092519,1343.2,1342.9,10.87132129]
[1673384194990,0.28826969,1343.2,1342.9,18.31768129]
[1673384195306,3.07844757,1343.2,1342.9,18.31768129]
[1673384195453,13.02338757,1343.2,1342.9,10.87132129]
[1673384195672,13.02938757,1343.2,1342.9,10.87132129]
[1673384196701,10.52938757,1343.2,1342.9,10.87132129]
[1673384196912,7.73920969,1343.2,1342.9,10.87132129]
[1673384197382,9.73920969,1343.2,1342.9,10.87132129]
[1673384197544,10.52938757,1343.2,1342.9,10.86932129]
[1673384197755,1.05293876,1343.1,1342.9,0.03262129]
[1673384197967,1.05293876,1343.1,1342.8,15.9098381]
[1673384198228,1.05293876,1343.1,1342.8,18.68193779]
[1673384198387,0.35426969,1343.2,1342.8,34.6872898]
[1673384198598,0.28826969,1343.2,1342.8,27.2401698]
[1673384198838,0.28826969,1343.2,1342.9,1.8478511]
[1673384199450,0.28826969,1343.2,1342.9,9.2942311]
[1673384199662,0.28826969,1343.2,1342.9,7.47900129]
[1673384199972,2.78826969,1343.2,1342.9,7.47900129]
[1673384200193,0.27882697,1343.1,1342.9,7.47900129]
[1673384200424,2.85617788,1343.2,1342.9,14.92557129]
[1673384200593,10.30055788,1343.3,1343.1,0.27882697]
[1673384200802,2.79617788,1343.3,1343.1,0.27882697]
[1673384201011,5.29017788,1343.3,1343.1,0.27882697]
[1673384201220,5.29617788,1343.3,1343.1,0.27882697]
[1673384201484,2.79617788,1343.3,1343.1,7.72413697]
[1673384201691,2.79017788,1343.3,1343.1,0.31144826]
[1673384201906,2.79017788,1343.3,1343.1,0.27882697]
[1673384202121,0.27901779,1343.2,1343.1,0.27882697]
[1673384202434,0.83761779,1343.2,1343.1,7.72414697]
[1673384202813,0.83761779,1343.2,1343.1,15.20222826]
[1673384202985,0.27901779,1343.2,1343.1,15.20222826]
[1673384203349,3.34877788,1343.3,1343.1,15.20222826]
[1673384203589,2.79017788,1343.3,1343.1,15.20222826]
[1673384203802,2.79017788,1343.3,1343.1,7.75676826]
[1673384205362,2.79017788,1343.3,1343.1,7.70676826]
[1673384205915,2.79217788,1343.3,1343.1,7.70476826]
[1673384206127,0.27921779,1343.2,1343.1,7.70676826]
[1673384206295,0.27921779,1343.2,1343.1,0.26144826]
[1673384206508,0.27921779,1343.2,1343.1,0.22882697]
[1673384209247,12.340291,1343.4,1343.1,0.22882697]
[1673384209460,10.959291,1343.4,1343.1,0.22882697]
[1673384209683,2.79017788,1343.3,1343.1,0.22882697]
[1673384210841,2.79017788,1343.3,1343.1,0.17882697]
[1673384214329,10.23455788,1343.3,1343.1,0.17882697]
[1673384214545,1.02345579,1343.2,1343.1,0.17882697]
[1673384215636,11.25853367,1343.2,1343.1,0.17882697]
[1673384215899,11.26453367,1343.2,1343.1,0.17882697]
[1673384217269,18.70943367,1343.2,1343.1,0.17882697]
[1673384217803,38.4149364,1343.2,1342.9,0.03262129]
[1673384217953,4.11617819,1343.0,1342.6,19.5919]
[1673384218160,19.00864819,1343.0,1342.6,19.62452129]
[1673384218375,1.90086482,1342.9,1342.6,19.62452129]
[1673384218700,9.34747482,1342.9,1342.6,19.62452129]
[1673384219043,1.90686482,1342.9,1342.6,27.07268129]
[1673384219247,1.90086482,1342.9,1342.6,27.07268129]
[1673384219479,1.90086482,1342.9,1342.6,34.52091129]
[1673384219887,7.5213219,1343.0,1342.6,37.30217095]
[1673384220213,7.4613219,1343.0,1342.6,34.52986164]
[1673384220394,0.0748,1342.9,1342.6,34.52986164]
[1673384221706,0.0748,1342.9,1342.7,4.34810391]
[1673384221995,0.0748,1342.9,1342.7,14.89514]
[1673384222168,0.0748,1342.9,1342.7,14.92776129]
[1673384222788,0.0748,1342.9,1342.7,7.48008129]
[1673384224108,0.0748,1342.9,1342.7,26.31061169]
[1673384224281,0.0748,1342.9,1342.8,1.19286868]
[1673384224471,0.0748,1342.9,1342.8,23.53422868]
[1673384224677,0.0748,1342.9,1342.8,23.56684997]
[1673384224939,7.6055,1343.1,1342.8,23.56684997]
[1673384224940,0.016,1343.1,1342.9,2.5]
[1673384225100,0.5586,1343.2,1342.9,17.39837825]
[1673384225308,11.54367819,1343.3,1342.9,24.87756954]
[1673384225523,11.48367819,1343.3,1342.9,24.87756954]
[1673384225850,11.48367819,1343.3,1342.9,31.02056954]
[1673384227517,11.48367819,1343.3,1342.9,34.95573994]
[1673384228000,8.6935,1343.3,1342.9,31.02056954]
[1673384228198,8.1349,1343.3,1342.9,31.02056954]
[1673384232875,8.1349,1343.3,1342.9,31.01856954]
[1673384233088,8.1349,1343.3,1342.9,31.02056954]
[1673384233819,8.1349,1343.3,1342.9,34.95573994]
[1673384234042,8.1349,1343.3,1342.9,31.02056954]
[1673384234450,8.1349,1343.3,1342.9,34.95573994]
[1673384236179,8.1349,1343.3,1342.9,31.02056954]
[1673384236554,8.1349,1343.3,1342.9,31.01856954]
[1673384236768,8.1349,1343.3,1342.9,31.02056954]
[1673384237815,10.92507819,1343.3,1342.9,31.02056954]
[1673384238022,8.1349,1343.3,1342.9,31.02056954]
[1673384238270,10.38022932,1343.3,1342.9,31.02056954]
[1673384240699,12.04922932,1343.3,1342.9,33.79221642]
[1673384241604,19.49358932,1343.3,1342.9,31.02056954]
[1673384242667,19.49358932,1343.3,1342.9,31.01856954]
[1673384242882,12.04922932,1343.3,1342.9,33.79220462]
[1673384243074,1.20492293,1343.2,1342.9,33.79220462]
[1673384243727,1.20492293,1343.2,1342.9,31.02056954]
[1673384244110,1.20692293,1343.2,1342.9,31.01856954]
[1673384244439,1.20492293,1343.2,1342.9,31.02056954]
[1673384245299,1.20692293,1343.2,1342.9,31.01856954]
[1673384245512,1.20492293,1343.2,1342.9,31.02056954]
[1673384246365,12.10922932,1343.3,1342.9,31.02056954]
[1673384246580,12.04922932,1343.3,1342.9,31.02056954]
[1673384247415,12.04922932,1343.3,1342.9,33.79220644]
[1673384250668,12.04922932,1343.3,1342.9,31.02056954]
[1673384251093,12.04922932,1343.3,1342.9,33.79226758]
[1673384252158,12.04922932,1343.3,1342.9,31.02056954]
[1673384252309,1.20492293,1343.2,1342.9,31.02056954]
[1673384252521,12.10922932,1343.3,1342.9,31.02056954]
[1673384252839,12.04922932,1343.3,1342.9,31.02056954]
[1673384254023,19.49368932,1343.3,1342.9,23.57399954]
[1673384254220,22.28386751,1343.3,1342.9,23.57399954]
[1673384254429,1.667,1343.2,1342.9,23.57399954]
[1673384254641,4.167,1343.2,1342.9,23.57399954]
[1673384254831,6.37216893,1343.2,1342.9,23.57399954]
[1673384255041,6.37816893,1343.2,1342.9,23.57399954]
[1673384255252,3.87816893,1343.2,1342.9,23.57399954]
[1673384255458,3.87216893,1343.2,1342.9,23.57399954]
[1673384256533,3.87216893,1343.2,1342.9,8.68148954]
[1673384256740,2.05121689,1343.1,1342.9,0.03262129]
[1673384257000,1.08424816,1342.9,1342.8,10.86552129]
[1673384257165,1.08424816,1342.9,1342.8,0.03262129]
[1673384257374,1.08424816,1342.9,1342.7,23.48596129]
[1673384258103,1.08424816,1342.9,1342.7,26.25791463]
[1673384258316,0.00524816,1342.9,1342.7,26.25591463]
[1673384258550,0.00324816,1342.9,1342.7,11.36307463]
[1673384258739,0.00324816,1342.9,1342.7,18.81071463]
[1673384258975,0.00324816,1342.9,1342.7,11.36307463]
[1673384259185,0.00324816,1342.9,1342.7,18.81067463]
[1673384259430,0.00324816,1342.9,1342.7,11.36307463]
[1673384259738,0.00324816,1342.9,1342.7,18.81074463]
[1673384260211,0.00324816,1342.9,1342.7,26.25842463]
[1673384261202,0.00324816,1342.9,1342.7,34.81721664]
[1673384262046,0.00324816,1342.9,1342.8,1.84793938]
[1673384262213,0.00324816,1342.9,1342.8,24.18929938]
[1673384262550,0.00324816,1342.9,1342.8,26.99387401]
[1673384262949,0.00324816,1342.9,1342.8,19.54675401]
[1673384263219,0.00324816,1342.9,1342.8,16.77480067]
[1673384263678,0.00324816,1342.9,1342.8,19.54675401]
[1673384264532,0.00324816,1342.9,1342.8,16.77480067]
[1673384265390,0.00324816,1342.9,1342.8,16.78680134]
[1673384266453,0.00324816,1342.9,1342.8,9.33968134]
[1673384266998,0.00324816,1342.9,1342.8,16.78680134]
[1673384267307,0.00324816,1342.9,1342.8,14.93886196]
[1673384270340,0.00324816,1342.9,1342.8,17.43886196]
[1673384271495,0.00324816,1342.9,1342.8,14.93886196]
[1673384272299,0.00324816,1342.9,1342.8,17.43886196]
[1673384272528,0.00324816,1342.9,1342.8,14.93886196]
[1673384274535,0.00324816,1342.9,1342.8,17.43886196]
[1673384274872,0.00324816,1342.9,1342.8,24.88598196]
[1673384277342,0.00324816,1342.9,1342.8,17.43886196]
[1673384277976,0.00324816,1342.9,1342.8,20.21077867]
[1673384278190,0.00324816,1342.9,1342.8,30.22574696]
[1673384279253,0.00324816,1342.9,1342.8,40.44482234]
[1673384279460,0.00324816,1342.9,1342.8,37.94482234]
[1673384279819,0.00324816,1342.9,1342.8,27.72574696]
[1673384282204,0.00324816,1342.9,1342.8,12.83150696]
[1673384282412,0.00324816,1342.9,1342.8,12.81950629]
[1673384282863,0.8713816,1342.9,1342.8,12.81950629]
[1673384283224,0.00324816,1342.9,1342.8,12.81950629]
[1673384285962,0.00324816,1342.9,1342.8,15.31950629]
[1673384286327,0.00324816,1342.9,1342.8,12.81950629]
[1673384286861,0.00324816,1342.9,1342.8,20.26662629]
[1673384287785,9.4377,1343.1,1342.8,20.26662629]
[1673384287961,0.94377,1343.0,1342.8,20.26662629]
[1673384293477,0.94377,1343.0,1342.8,20.26344699]
[1673384293631,0.94377,1343.0,1342.8,20.26544699]
[1673384293887,3.73394819,1343.0,1342.8,20.26544699]
[1673384294052,0.94377,1343.0,1342.8,12.81832699]
[1673384294263,1.175377,1342.9,1342.8,12.81832699]
[1673384295150,0.094377,1342.9,1342.8,12.81832699]
[1673384297293,0.94377,1343.0,1342.8,12.81832699]
[1673384299235,0.94377,1343.0,1342.8,20.26533699]
[1673384301067,0.94118814,1343.0,1342.8,12.81832699]
[1673384304521,8.38721814,1343.0,1342.8,12.81832699]
[1673384304760,0.83872181,1342.9,1342.8,12.81832699]
[1673384306067,18.52204,1342.9,1342.8,12.81832699]
[1673384306319,17.40186181,1342.9,1342.8,12.81832699]
[1673384306496,31.43627064,1342.9,1342.8,2.87279201]
[1673384306715,31.47184242,1342.9,1342.8,0.087]
[1673384306908,16.57870242,1342.9,1342.5,0.05228289]
[1673384307113,1.659,1342.7,1342.5,7.50103289]
[1673384307327,1.659,1342.7,1342.5,7.59203289]
[1673384308201,1.659,1342.7,1342.5,15.04081289]
[1673384308412,1.2469,1342.6,1342.5,15.04081289]
[1673384310584,1.2469,1342.6,1342.5,7.59203289]
[1673384312423,1.2469,1342.6,1342.5,0.14328289]
[1673384312599,1.2469,1342.6,1342.5,0.05228289]
[1673384315206,1.2489,1342.6,1342.5,0.05228289]
[1673384315417,1.2469,1342.6,1342.5,0.05228289]
[1673384317114,1.2469,1342.6,1342.5,7.50106289]
[1673384317324,1.2469,1342.6,1342.5,0.14328289]
[1673384317538,1.2469,1342.6,1342.5,0.05228289]
[1673384318190,1.2469,1342.6,1342.5,7.50106289]
[1673384318191,0.1659,1342.6,1342.5,7.50106289]
[1673384318414,0.1659,1342.6,1342.5,7.59206289]
[1673384319246,1.2469,1342.6,1342.5,0.14328289]
[1673384319461,1.2469,1342.6,1342.5,0.05228289]
[1673384321633,0.1659,1342.6,1342.5,7.50106289]
[1673384321844,1.6682519,1342.7,1342.5,0.14328289]
[1673384322105,1.6682519,1342.7,1342.5,0.05228289]
[1673384322339,9.1160219,1342.7,1342.5,0.05228289]
[1673384322497,9.1320219,1342.7,1342.5,0.05228289]
[1673384322912,4.169,1342.6,1342.5,0.05228289]
[1673384323271,29.16743719,1342.6,1342.5,0.05228289]
[1673384323458,29.18343719,1342.6,1342.5,0.05228289]
[1673384323671,30.85243719,1342.6,1342.5,0.05228289]
[1673384324719,30.85243719,1342.6,1342.5,2.89e-06]
[1673384324895,23.96310719,1342.6,1342.5,2.89e-06]
[1673384325257,23.96310719,1342.6,1342.4,0.05359859]
[1673384325468,12.07299072,1342.5,1342.4,0.05359859]
[1673384325624,4.64021072,1342.5,1342.4,0.05359859]
[1673384325840,4.62421072,1342.5,1342.4,0.05359859]
[1673384326798,12.07299072,1342.5,1342.4,0.05359859]
[1673384327016,4.64021072,1342.5,1342.4,0.05359859]
[1673384327253,4.62421072,1342.5,1342.4,0.05359859]
[1673384327469,4.06531072,1342.5,1342.4,0.05359859]
[1673384327988,11.51409072,1342.5,1342.4,0.05359859]
[1673384328301,11.53009072,1342.5,1342.4,0.05359859]
[1673384328692,15.33700326,1342.5,1342.4,0.05359859]
[1673384328891,15.33700326,1342.5,1342.4,8.59e-06]
[1673384328892,21.73167875,1342.5,1342.4,8.59e-06]
[1673384329106,40.18813875,1342.5,1342.4,8.59e-06]
[1673384329316,40.18813875,1342.5,1342.3,0.05359859]
[1673384329527,9.84481388,1342.4,1342.3,0.05359859]
[1673384329738,7.36081388,1342.4,1342.3,0.05359859]
[1673384329947,5.69181388,1342.4,1342.3,0.05359859]
[1673384330163,1.673,1342.4,1342.3,7.50348859]
[1673384330385,1.657,1342.4,1342.3,0.14459859]
[1673384330621,1.657,1342.4,1342.3,0.05359859]
[1673384330832,41.55226227,1342.5,1342.3,0.05359859]
[1673384331225,41.50226227,1342.5,1342.3,0.05359859]
[1673384331395,4.15022623,1342.4,1342.3,0.05359859]
[1673384332388,6.65022623,1342.4,1342.3,0.05359859]
[1673384332597,6.66622623,1342.4,1342.3,0.05359859]
[1673384332962,4.16622623,1342.4,1342.3,0.05359859]
[1673384333186,4.15022623,1342.4,1342.3,0.05359859]
[1673384334496,26.49824623,1342.4,1342.3,0.05359859]
[1673384334700,19.06490623,1342.4,1342.3,0.05359859]
[1673384334986,7.96388687,1342.4,1342.3,0.05359859]
[1673384335810,15.41322687,1342.4,1342.3,0.05359859]
[1673384336332,17.91322687,1342.4,1342.3,0.05359859]
[1673384336503,10.46388687,1342.4,1342.3,0.05359859]
[1673384337059,7.96388687,1342.4,1342.3,0.05359859]
[1673384340397,10.46388687,1342.4,1342.3,0.05359859]
[1673384340695,12.13088687,1342.4,1342.3,0.05359859]
[1673384341130,19.58022687,1342.4,1342.3,0.05359859]
[1673384341357,27.02956687,1342.4,1342.3,0.05359859]
[1673384342926,24.52956687,1342.4,1342.3,0.05359859]
[1673384344122,17.08022687,1342.4,1342.3,0.05359859]
[1673384349265,9.63088687,1342.4,1342.3,0.05359859]
[1673384349482,17.08022687,1342.4,1342.3,0.05359859]
[1673384349692,9.63088687,1342.4,1342.3,0.05359859]
[1673384353985,12.13088687,1342.4,1342.3,0.05047777]
[1673384354197,17.08022687,1342.4,1342.3,0.05047777]
[1673384354795,9.63088687,1342.4,1342.3,0.05047777]
[1673384359911,5.83322623,1342.4,1342.3,0.05047777]
[1673384360061,30.26952973,1342.5,1342.4,1.09330673]
[1673384360276,26.16899037,1342.5,1342.4,1.09330673]
[1673384360952,24.51099037,1342.5,1342.4,1.09330673]
[1673384361131,10.51099037,1342.5,1342.4,1.09330673]
[1673384362836,0.75811901,1342.5,1342.4,1.09330673]
[1673384363166,0.75211901,1342.5,1342.4,1.09330673]
[1673384363384,1.31101901,1342.5,1342.4,1.09330673]
[1673384363573,0.75211901,1342.5,1342.4,1.10693555]
[1673384364118,17.07166954,1342.6,1342.4,1.10693555]
[1673384364272,20.80933018,1342.6,1342.4,1.10693555]
[1673384367545,1.34266954,1342.6,1342.4,10.17099588]
[1673384367751,0.77776954,1342.6,1342.4,25.16067588]
[1673384368368,22.4205,1342.7,1342.4,25.16067588]
[1673384368574,22.3605,1342.7,1342.4,25.16067588]
[1673384369051,8.3605,1342.7,1342.4,25.16067588]
[1673384370632,7.8017,1342.7,1342.4,25.16067588]
[1673384371030,7.8017,1342.7,1342.4,17.71133588]
[1673384371417,10.59215564,1342.7,1342.4,10.26199588]
[1673384371634,7.8017,1342.7,1342.4,17.71133588]
[1673384372261,7.8017,1342.7,1342.4,23.54594555]
[1673384372693,7.8017,1342.7,1342.4,16.09660555]
[1673384373005,10.59215564,1342.7,1342.4,16.09660555]
[1673384374178,7.8017,1342.7,1342.4,16.09660555]
[1673384376251,1.669,1342.6,1342.4,1.19793555]
[1673384376501,13.74644064,1342.5,1342.4,1.09330673]
[1673384376716,30.31400064,1342.5,1342.4,1.09330673]
[1673384377085,22.86522064,1342.5,1342.4,1.09330673]
[1673384377509,23.42412064,1342.5,1342.4,1.09330673]
[1673384377769,28.78457022,1342.5,1342.4,1.09330673]
[1673384377997,21.33579022,1342.5,1342.4,1.09330673]
[1673384378490,31.57502586,1342.5,1342.4,1.09330673]
[1673384378826,16.67746586,1342.5,1342.4,1.09330673]
[1673384379049,24.12624586,1342.5,1342.4,1.09330673]
[1673384379356,31.57502586,1342.5,1342.4,1.09330673]
[1673384380618,35.67445022,1342.5,1342.4,1.09330673]
[1673384381021,38.46254403,1342.5,1342.4,1.09330673]
[1673384381209,39.02144403,1342.5,1342.4,0.95700673]
[1673384381774,31.57266403,1342.5,1342.4,0.95700673]
[1673384382103,29.07266403,1342.5,1342.4,0.95700673]
[1673384382460,36.52144403,1342.5,1342.4,0.95700673]
[1673384382667,36.52144403,1342.5,1342.3,0.05047777]
[1673384382883,9.11880504,1342.4,1342.3,0.05047777]
[1673384383137,16.57414504,1342.4,1342.3,0.05047777]
[1673384385984,9.12480504,1342.4,1342.3,0.05047777]
[1673384386154,7.45580504,1342.4,1342.3,0.05047777]
[1673384386610,0.006,1342.4,1342.3,22.40014777]
[1673384386821,5.42044958,1342.5,1342.3,22.40014777]
[1673384386822,0.006,1342.5,1342.3,0.14147777]
[1673384387032,27.71200627,1342.6,1342.3,0.05047777]
[1673384387192,31.50966691,1342.6,1342.3,0.05047777]
[1673384387665,24.06143691,1342.6,1342.3,0.05047777]
[1673384387854,24.62033691,1342.6,1342.3,7.50020777]
[1673384388076,24.06143691,1342.6,1342.3,7.59120777]
[1673384388247,2.79409381,1342.6,1342.3,10.01358673]
[1673384388449,10.92699381,1342.7,1342.4,0.01781564]
[1673384388679,10.92699381,1342.7,1342.5,14.89756]
[1673384388680,14.66465445,1342.7,1342.5,14.89756]
[1673384388886,0.006,1342.7,1342.5,22.43734]
[1673384389124,5.06089381,1342.8,1342.5,22.43734]
[1673384389125,5.00689381,1342.8,1342.5,22.43734]
[1673384389373,9.72157879,1342.8,1342.5,22.43734]
[1673384390293,2.79409381,1342.8,1342.5,22.43734]
[1673384390504,2.85409381,1342.9,1342.6,1.653]
[1673384390662,42.78703056,1343.0,1342.7,24.01004]
[1673384390663,33.27279381,1343.0,1342.7,24.01004]
[1673384390875,6.59175445,1343.0,1342.7,24.10104]
[1673384391121,2.79409381,1343.0,1342.7,24.10104]
[1673384391337,2.99760657,1343.1,1342.8,4.075104]
[1673384391648,2.99760657,1343.1,1342.8,16.55906]
[1673384391649,2.78809381,1343.0,1342.8,16.55906]
[1673384391868,2.78809381,1343.0,1342.8,16.65006]
[1673384392444,6.79526721,1343.1,1342.8,16.65006]
[1673384392653,6.73526721,1343.1,1342.8,16.65006]
[1673384393498,2.78809381,1343.0,1342.8,14.98506]
[1673384393747,3.9471734,1343.1,1342.8,7.53794]
[1673384393748,6.79526721,1343.1,1342.8,7.53794]
[1673384393917,6.73526721,1343.1,1342.8,7.53794]
[1673384395187,6.73526721,1343.1,1342.8,14.98506]
[1673384395394,6.73526721,1343.1,1342.8,7.53794]
[1673384395718,6.73526721,1343.1,1342.8,14.98506]
[1673384395920,6.73526721,1343.1,1342.8,7.53794]